fUSD/lending_fUSD_20251115
["ID","MTS","AMOUNT","RATE_DAILY","PERIOD"]
[394077320,1763244651582,-300.0,0.00041223,2]
[394077321,1763244651591,-300.0,0.00041239,2]
[394077322,1763244651600,-300.0,0.00041246,2]
[394077323,1763244651610,-300.0,0.00041259,2]
[394077324,1763244651619,-300.0,0.00041265,2]
[394077325,1763244651628,-150.0,0.0004127,20]
[394077326,1763244651638,-97079.110388,0.00041271,2]
[394077327,1763244651647,-2988.2350822,0.00041271,2]
[394077328,1763244651657,-4720.8049364,0.00041271,2]
[394077329,1763244651671,-4986.2229542,0.00041271,2]
[394077330,1763244651680,-151.0,0.00041271,120]
[394077331,1763244651689,-151.0,0.00041271,120]
[394077332,1763244651698,-151.0,0.00041271,120]
[394077333,1763244651708,-151.0,0.00041271,120]
[394077334,1763244651717,-156.189326,0.00041271,120]
[394077335,1763244651726,-151.0,0.00041271,120]
[394077336,1763244651736,-151.0,0.00041271,120]
[394077337,1763244651745,-151.0,0.00041271,120]
[394077338,1763244651754,-151.0,0.00041271,120]
[394077339,1763244651763,-151.0,0.00041271,120]
[394077340,1763244651772,-163.763305,0.00041271,120]
[394077341,1763244651781,-151.0,0.00041271,120]
[394077342,1763244651790,-151.0,0.00041271,120]
[394077343,1763244651799,-151.0,0.00041271,120]
[394077344,1763244651809,-151.0,0.00041271,120]
[394077345,1763244651818,-151.0,0.00041271,120]
[394077346,1763244651827,-301.738638,0.00041271,120]
[394077347,1763244651837,-151.0,0.00041271,120]
[394077348,1763244651846,-151.0,0.00041271,120]
[394077349,1763244651856,-151.0,0.00041271,120]
[394077350,1763244651865,-326.765039,0.00041271,120]
[394077351,1763244651875,-326.765039,0.00041271,120]
[394077352,1763244651884,-326.765039,0.00041271,120]
[394077353,1763244651893,-326.765039,0.00041271,120]
[394077354,1763244651902,-151.0,0.00041271,120]
[394077355,1763244651911,-151.0,0.00041271,120]
[394077356,1763244651922,-151.0,0.00041271,120]
[394077357,1763244651932,-396.645407,0.00041271,120]
[394077358,1763244651941,-396.645407,0.00041271,120]
[394077359,1763244651950,-396.645407,0.00041271,120]
[394077360,1763244651960,-396.645407,0.00041271,120]
[394077361,1763244651969,-500.997914,0.00041271,120]
[394077362,1763244651978,-171.825475,0.00041271,120]
[394077363,1763244651987,-500.997914,0.00041271,120]
[394077364,1763244651996,-500.997914,0.00041271,120]
[394077365,1763244652006,-500.997914,0.00041271,120]
[394077366,1763244652015,-151.0,0.00041271,120]
[394077367,1763244652025,-188.737272,0.00041271,120]
[394077368,1763244652034,-151.0,0.00041271,120]
[394077369,1763244652043,-159.291271,0.00041271,120]
[394077370,1763244652052,-198.650718,0.00041271,120]
[394077371,1763244652062,-188.737272,0.00041271,120]
[394077372,1763244652071,-198.650718,0.00041271,120]
[394077373,1763244652080,-188.737272,0.00041271,120]
[394077374,1763244652089,-151.0,0.00041271,120]
[394077375,1763244652099,-198.650718,0.00041271,120]
[394077376,1763244652109,-151.0,0.00041271,120]
[394077377,1763244652118,-188.737272,0.00041271,120]
[394077378,1763244652127,-151.0,0.00041271,120]
[394077379,1763244652136,-294.073412,0.00041271,120]
[394077380,1763244652145,-198.650718,0.00041271,120]
[394077381,1763244652155,-151.0,0.00041271,120]
[394077382,1763244652164,-175.410442,0.00041271,30]
[394077383,1763244652173,-294.073412,0.00041271,120]
[394077384,1763244652183,-151.0,0.00041271,120]
[394077385,1763244652192,-294.073412,0.00041271,120]
[394077386,1763244652201,-151.0,0.00041271,120]
[394077387,1763244652210,-153.035652,0.00041271,120]
[394077388,1763244652219,-151.0,0.00041271,120]
[394077389,1763244652228,-294.073412,0.00041271,120]
[394077390,1763244652238,-153.035652,0.00041271,120]
[394077391,1763244652247,-151.0,0.00041271,120]
[394077392,1763244652256,-151.0,0.00041271,120]
[394077393,1763244652266,-153.035652,0.00041271,120]
[394077394,1763244652275,-151.0,0.00041271,120]
[394077395,1763244652284,-153.035652,0.00041271,120]
[394077396,1763244652293,-300.0,0.00041273,2]
[394077397,1763244652302,-21434.21421974,0.00041276,30]
[394077398,1763244652311,-347.5,0.000413,60]
[394077399,1763244652321,-710.12854733,0.00041304,30]
[394077400,1763244652330,-215.10664744,0.0004132,2]
[394077401,1763244652339,-300.0,0.00041325,2]
[394077402,1763244652349,-300.0,0.00041325,2]
[394077403,1763244652358,-300.0,0.0004133,2]
[394077404,1763244652367,-500.0,0.0004134,30]
[394077405,1763244652376,-500.0,0.0004134,30]
[394077406,1763244652385,-500.0,0.0004134,30]
[394077407,1763244652394,-500.0,0.0004134,30]
[394077408,1763244652404,-200.30582682,0.0004134,30]
[394077409,1763244652413,-3576.39248094,0.0004134,15]
[394077410,1763244652422,-12852.43058998,0.0004134,15]
[394077411,1763244652431,-297.16919071,0.0004134,15]
[394077412,1763244652440,-1502.14270285,0.0004134,3]
[394077413,1763244652449,-220.96444067,0.0004134,2]
[394077414,1763244652458,-320.56766368,0.0004134,120]
[394077415,1763244652467,-1431.35274028,0.0004134,2]
[394077416,1763244652476,-173.36130234,0.0004134,28]
[394077417,1763244652485,-2047.32212402,0.0004134,2]
[394077418,1763244652494,-18677.0,0.00041342,120]
[394077419,1763244652504,-300.0,0.00041357,2]
[394077420,1763244652513,-300.0,0.00041361,2]
[394077421,1763244652522,-1000.0,0.00041368,120]
[394077422,1763244652531,-1000.0,0.00041368,120]
[394077423,1763244652540,-1000.0,0.00041368,120]
[394077424,1763244652549,-1000.0,0.00041368,120]
[394077425,1763244652559,-1000.0,0.00041368,120]
[394077426,1763244652568,-1000.0,0.00041368,120]
[394077427,1763244652577,-1000.0,0.00041368,120]
[394077428,1763244652586,-982.542,0.00041368,120]
[394077429,1763244652596,-2792.78,0.00041369,2]
[394077430,1763244652605,-150.0,0.00041369,2]
[394077431,1763244652614,-150.0,0.00041369,2]
[394077432,1763244652623,-290.73777035,0.00041369,2]
[394077433,1763244652632,-150.0,0.00041369,2]
[394077434,1763244652641,-151.89863775,0.00041369,2]
[394077435,1763244652650,-150.45659999,0.00041369,2]
[394077436,1763244652659,-500.0,0.00041369,120]
[394077437,1763244652673,-500.0,0.00041369,120]
[394077438,1763244652682,-500.0,0.00041369,120]
[394077439,1763244652691,-500.0,0.00041369,120]
[394077440,1763244652700,-487.56410952,0.00041369,120]
[394077441,1763244652710,-500.0,0.00041369,2]
[394077442,1763244652719,-500.0,0.00041369,2]
[394077443,1763244652729,-500.0,0.00041369,2]
[394077444,1763244652739,-500.0,0.00041369,2]
[394077445,1763244652749,-500.0,0.00041369,2]
[394077446,1763244652758,-361.37971289,0.00041369,2]
[394077447,1763244652767,-150.0,0.00041369,2]
[394077448,1763244652776,-150.0,0.00041369,2]
[394077449,1763244652785,-150.0,0.00041369,2]
[394077450,1763244652794,-150.0,0.00041369,2]
[394077451,1763244652803,-150.0,0.00041369,2]
[394077452,1763244652812,-150.0,0.00041369,2]
[394077453,1763244652822,-246.70336482,0.00041369,2]
[394077454,1763244652830,-500.0,0.00041369,2]
[394077455,1763244652839,-500.0,0.00041369,2]
[394077456,1763244652849,-500.0,0.00041369,2]
[394077457,1763244652858,-500.0,0.00041369,2]
[394077458,1763244652867,-534.13603642,0.00041369,2]
[394077459,1763244652876,-584.0,0.00041369,2]
[394077460,1763244652885,-584.0,0.00041369,2]
[394077461,1763244652895,-584.0,0.00041369,2]
[394077462,1763244652906,-584.0,0.00041369,2]
[394077463,1763244652915,-584.0,0.00041369,2]
[394077464,1763244652924,-584.0,0.00041369,2]
[394077465,1763244652934,-584.0,0.00041369,2]
[394077466,1763244652943,-584.0,0.00041369,2]
[394077467,1763244652952,-584.0,0.00041369,2]
[394077468,1763244652961,-584.0,0.00041369,2]
[394077469,1763244652970,-584.0,0.00041369,2]
[394077470,1763244652979,-584.0,0.00041369,2]
[394077471,1763244652988,-584.0,0.00041369,2]
[394077472,1763244652998,-584.0,0.00041369,2]
[394077473,1763244653007,-584.0,0.00041369,2]
[394077474,1763244653016,-584.0,0.00041369,2]
[394077475,1763244653025,-584.0,0.00041369,2]
[394077476,1763244653184,-584.0,0.00041369,2]
[394077477,1763244653194,-584.0,0.00041369,2]
[394077478,1763244653204,-584.0,0.00041369,2]
[394077479,1763244653213,-584.0,0.00041369,2]
[394077480,1763244653223,-584.0,0.00041369,2]
[394077481,1763244653233,-584.0,0.00041369,2]
[394077482,1763244653243,-585.15152986,0.00041369,2]
[394077483,1763244653253,-500.0,0.00041369,2]
[394077484,1763244653262,-500.0,0.00041369,2]
[394077485,1763244653271,-500.0,0.00041369,2]
[394077486,1763244653281,-582.74501143,0.00041369,2]
[394077487,1763244653290,-300.0,0.00041369,2]
[394077488,1763244653300,-300.0,0.00041369,2]
[394077489,1763244653309,-200.86,0.00041369,30]
[394077490,1763244653319,-4398.58,0.00041369,2]
[394077491,1763244653329,-300.0,0.00041369,2]
[394077492,1763244653338,-662.45,0.00041369,2]
[394077493,1763244653348,-151.55835863,0.00041369,2]
[394077494,1763244653358,-150.0,0.00041369,2]
[394077495,1763244653368,-500.0,0.00041369,2]
[394077496,1763244653378,-500.0,0.00041369,2]
[394077497,1763244653387,-500.0,0.00041369,2]
[394077498,1763244653397,-500.0,0.00041369,2]
[394077499,1763244653406,-500.0,0.00041369,2]
[394077500,1763244653416,-562.26757316,0.00041369,2]
[394077501,1763244653426,-150.0,0.00041369,2]
[394077502,1763244653435,-150.0,0.00041369,2]
[394077503,1763244653445,-150.0,0.00041369,2]
[394077504,1763244653454,-205.55807622,0.00041369,2]
[394077505,1763244653463,-165.71929386,0.00041369,60]
[394077506,1763244653472,-500.0,0.00041369,2]
[394077507,1763244653481,-500.0,0.00041369,2]
[394077508,1763244653490,-500.0,0.00041369,2]
[394077509,1763244653500,-500.0,0.00041369,2]
[394077510,1763244653509,-500.0,0.00041369,2]
[394077511,1763244653518,-500.0,0.00041369,2]
[394077512,1763244653527,-500.0,0.00041369,2]
[394077513,1763244653538,-500.0,0.00041369,2]
[394077514,1763244653547,-500.0,0.00041369,2]
[394077515,1763244653556,-500.0,0.00041369,2]
[394077516,1763244653566,-500.0,0.00041369,2]
[394077517,1763244653575,-500.0,0.00041369,2]
[394077518,1763244653584,-500.0,0.00041369,2]
[394077519,1763244653593,-500.0,0.00041369,2]
[394077521,1763244653603,-500.0,0.00041369,2]
[394077522,1763244653613,-500.0,0.00041369,2]
[394077523,1763244653622,-500.0,0.00041369,2]
[394077524,1763244653632,-530.10881702,0.00041369,2]
[394077525,1763244653641,-500.0,0.00041369,2]
[394077526,1763244653651,-500.0,0.00041369,2]
[394077527,1763244653660,-500.0,0.00041369,2]
[394077528,1763244653673,-500.0,0.00041369,2]
[394077529,1763244653683,-500.0,0.00041369,2]
[394077530,1763244653693,-500.0,0.00041369,2]
[394077531,1763244653702,-500.0,0.00041369,2]
[394077532,1763244653712,-500.0,0.00041369,2]
[394077533,1763244653721,-500.0,0.00041369,2]
[394077534,1763244653731,-500.0,0.00041369,2]
[394077535,1763244653741,-500.0,0.00041369,2]
[394077536,1763244653752,-500.0,0.00041369,2]
[394077537,1763244653761,-500.0,0.00041369,2]
[394077538,1763244653770,-500.0,0.00041369,2]
[394077539,1763244653780,-500.0,0.00041369,2]
[394077540,1763244653789,-500.0,0.00041369,2]
[394077541,1763244653799,-500.0,0.00041369,2]
[394077542,1763244653808,-500.0,0.00041369,2]
[394077543,1763244653818,-485.09058876,0.00041369,2]
[394077544,1763244653827,-150.0,0.00041369,2]
[394077545,1763244653838,-150.0,0.00041369,2]
[394077546,1763244653849,-275.87630967,0.00041369,2]
[394077547,1763244653859,-150.0,0.00041369,2]
[394077548,1763244653869,-150.0,0.00041369,2]
[394077549,1763244653879,-150.0,0.00041369,2]
[394077550,1763244653889,-200.0,0.00041369,2]
[394077551,1763244653898,-500.0,0.00041369,2]
[394077552,1763244653907,-500.0,0.00041369,2]
[394077553,1763244653917,-500.0,0.00041369,2]
[394077554,1763244653926,-500.0,0.00041369,2]
[394077555,1763244653936,-500.0,0.00041369,2]
[394077556,1763244653946,-500.0,0.00041369,2]
[394077557,1763244653955,-500.0,0.00041369,2]
[394077558,1763244653965,-500.0,0.00041369,2]
[394077559,1763244653975,-500.0,0.00041369,2]
[394077560,1763244653985,-500.0,0.00041369,2]
[394077561,1763244653995,-500.0,0.00041369,2]
[394077562,1763244654005,-500.0,0.00041369,2]
[394077563,1763244654015,-500.0,0.00041369,2]
[394077564,1763244654025,-500.0,0.00041369,2]
[394077565,1763244654034,-500.0,0.00041369,2]
[394077566,1763244654045,-500.0,0.00041369,2]
[394077567,1763244654055,-500.0,0.00041369,2]
[394077568,1763244654065,-500.0,0.00041369,2]
[394077569,1763244654075,-500.0,0.00041369,2]
[394077570,1763244654084,-384.63330714,0.00041369,2]
[394077571,1763244654094,-152.80828593,0.00041369,2]
[394077572,1763244654104,-500.0,0.00041369,2]
[394077573,1763244654113,-500.0,0.00041369,2]
[394077574,1763244654122,-500.0,0.00041369,2]
[394077575,1763244654132,-458.78350473,0.00041369,2]
[394077576,1763244654142,-545.0,0.00041369,2]
[394077577,1763244654151,-545.0,0.00041369,2]
[394077578,1763244654161,-545.0,0.00041369,2]
[394077579,1763244654171,-545.0,0.00041369,2]
[394077580,1763244654181,-545.0,0.00041369,2]
[394077581,1763244654190,-545.0,0.00041369,2]
[394077582,1763244654200,-545.0,0.00041369,2]
[394077583,1763244654210,-545.0,0.00041369,2]
[394077584,1763244654220,-545.0,0.00041369,2]
[394077585,1763244654229,-545.0,0.00041369,2]
[394077586,1763244654239,-545.0,0.00041369,2]
[394077587,1763244654249,-545.0,0.00041369,2]
[394077588,1763244654258,-545.0,0.00041369,2]
[394077589,1763244654268,-545.0,0.00041369,2]
[394077590,1763244654278,-545.0,0.00041369,2]
[394077591,1763244654287,-545.0,0.00041369,2]
[394077592,1763244654297,-545.0,0.00041369,2]
[394077593,1763244654307,-545.0,0.00041369,2]
[394077594,1763244654316,-545.0,0.00041369,2]
[394077595,1763244654328,-545.0,0.00041369,2]
[394077596,1763244654338,-545.0,0.00041369,2]
[394077597,1763244654347,-545.0,0.00041369,2]
[394077598,1763244654356,-545.0,0.00041369,2]
[394077599,1763244654366,-551.48263957,0.00041369,2]
[394077600,1763244654375,-500.0,0.00041369,2]
[394077601,1763244654384,-500.0,0.00041369,2]
[394077602,1763244654393,-500.0,0.00041369,2]
[394077603,1763244654402,-500.0,0.00041369,2]
[394077604,1763244654412,-500.0,0.00041369,2]
[394077605,1763244654421,-500.0,0.00041369,2]
[394077606,1763244654431,-500.0,0.00041369,2]
[394077607,1763244654440,-500.0,0.00041369,2]
[394077608,1763244654449,-520.69436837,0.00041369,2]
[394077609,1763244654459,-150.0,0.00041369,2]
[394077610,1763244654469,-288.89783888,0.00041369,2]
[394077611,1763244654478,-150.0,0.00041369,2]
[394077612,1763244654487,-150.0,0.00041369,2]
[394077613,1763244654496,-500.0,0.00041369,2]
[394077614,1763244654506,-500.0,0.00041369,2]
[394077615,1763244654515,-500.0,0.00041369,2]
[394077616,1763244654524,-500.0,0.00041369,2]
[394077617,1763244654533,-500.0,0.00041369,2]
[394077618,1763244654543,-500.0,0.00041369,2]
[394077619,1763244654553,-500.0,0.00041369,2]
[394077620,1763244654563,-500.0,0.00041369,2]
[394077621,1763244654572,-500.0,0.00041369,2]
[394077622,1763244654581,-500.0,0.00041369,2]
[394077623,1763244654591,-500.0,0.00041369,2]
[394077624,1763244654600,-500.0,0.00041369,2]
[394077625,1763244654609,-500.0,0.00041369,2]
[394077626,1763244654618,-500.0,0.00041369,2]
[394077627,1763244654627,-500.0,0.00041369,2]
[394077628,1763244654637,-500.0,0.00041369,2]
[394077629,1763244654646,-500.0,0.00041369,2]
[394077630,1763244654655,-500.0,0.00041369,2]
[394077631,1763244654667,-500.0,0.00041369,2]
[394077632,1763244654676,-330.38583015,0.00041369,2]
[394077633,1763244654686,-150.0,0.00041369,2]
[394077634,1763244654695,-150.0,0.00041369,2]
[394077635,1763244654705,-150.0,0.00041369,2]
[394077636,1763244654715,-200.0,0.00041369,2]
[394077637,1763244654724,-150.0,0.00041369,2]
[394077638,1763244654733,-500.0,0.00041369,2]
[394077639,1763244654743,-500.0,0.00041369,2]
[394077640,1763244654753,-500.0,0.00041369,2]
[394077641,1763244654763,-500.0,0.00041369,2]
[394077642,1763244654772,-500.0,0.00041369,2]
[394077643,1763244654782,-544.96359558,0.00041369,2]
[394077644,1763244654791,-500.0,0.00041369,2]
[394077645,1763244654800,-500.0,0.00041369,2]
[394077646,1763244654809,-500.0,0.00041369,2]
[394077647,1763244654819,-500.0,0.00041369,2]
[394077648,1763244654828,-463.52986719,0.00041369,2]
[394077649,1763244654837,-153.47564565,0.00041369,2]
[394077650,1763244654847,-500.0,0.00041369,2]
[394077651,1763244654856,-600.0,0.00041369,2]
[394077652,1763244654865,-150.82616451,0.00041369,2]
[394077653,1763244654875,-150.0,0.00041369,2]
[394077654,1763244654884,-150.0,0.00041369,2]
[394077655,1763244654893,-150.0,0.00041369,2]
[394077656,1763244654903,-203.43582105,0.00041369,2]
[394077657,1763244654913,-500.0,0.00041369,2]
[394077658,1763244654922,-500.0,0.00041369,2]
[394077659,1763244654932,-500.0,0.00041369,2]
[394077660,1763244654941,-150.0,0.00041369,2]
[394077661,1763244654951,-150.0,0.00041369,2]
[394077662,1763244654963,-208.52920862,0.00041369,2]
[394077663,1763244654972,-500.0,0.00041369,2]
[394077664,1763244654981,-500.0,0.00041369,2]
[394077665,1763244654991,-500.0,0.00041369,2]
[394077666,1763244655001,-150.0,0.00041369,2]
[394077667,1763244655011,-150.0,0.00041369,2]
[394077668,1763244655020,-151.47667617,0.00041369,2]
[394077669,1763244655030,-150.0,0.00041369,2]
[394077670,1763244655039,-150.0,0.00041369,2]
[394077671,1763244655049,-150.0,0.00041369,2]
[394077672,1763244655058,-150.0,0.00041369,2]
[394077673,1763244655067,-150.37406736,0.00041369,2]
[394077674,1763244655077,-500.0,0.00041369,2]
[394077675,1763244655086,-500.0,0.00041369,2]
[394077676,1763244655096,-383.1495843,0.00041369,2]
[394077677,1763244655106,-150.0,0.00041369,2]
[394077678,1763244655115,-155.02782084,0.00041369,2]
[394077679,1763244655124,-150.0,0.00041369,2]
[394077680,1763244655134,-150.0,0.00041369,2]
[394077681,1763244655143,-150.0,0.00041369,2]
[394077682,1763244655152,-242.11771459,0.00041369,2]
[394077683,1763244655161,-150.0,0.00041369,2]
[394077684,1763244655171,-151.15059434,0.00041369,2]
[394077685,1763244655180,-300.0,0.00041384,2]
[394077686,1763244655189,-150.0,0.00041384,4]
[394077687,1763244655199,-300.0,0.00041385,2]
[394077688,1763244655207,-300.0,0.00041387,2]
[394077689,1763244655216,-2000.0,0.00041396,120]
[394077690,1763244655225,-150.0,0.00041396,3]
[394077691,1763244655234,-10719.0,0.00041397,120]
[394077692,1763244655244,-451.5,0.00041398,30]
[394077693,1763244655253,-170.113,0.00041398,90]
[394077694,1763244655262,-150.0,0.00041398,44]
[394077695,1763244655271,-150.0,0.00041398,21]
[394077696,1763244655281,-500.0,0.00041399,2]
[394077697,1763244655290,-150.0,0.00041399,42]
[394077698,1763244655299,-150.0,0.000414,42]
[394077699,1763244655307,-235.65,0.000414,42]
[394077700,1763244655316,-184.66,0.000414,44]
[394077701,1763244655326,-184.66,0.000414,44]
[394077702,1763244655335,-202.425479,0.000414,21]
[394077703,1763244655344,-300.0,0.00041408,2]
[394077704,1763244655354,-300.0,0.00041411,2]
[394077705,1763244655363,-150.0,0.00041412,5]
[394077706,1763244655372,-150.0,0.00041412,95]
[394077707,1763244655381,-151.0,0.00041414,120]
[394077708,1763244655391,-151.0,0.00041415,120]
[394077709,1763244655400,-151.0,0.00041415,120]
[394077710,1763244655409,-151.0,0.00041415,120]
[394077711,1763244655418,-151.0,0.00041415,120]
[394077712,1763244655427,-151.0,0.00041415,120]
[394077713,1763244655436,-151.0,0.00041415,15]
[394077714,1763244655446,-151.0,0.00041415,120]
[394077715,1763244655455,-162.881046,0.00041415,120]
[394077716,1763244655464,-151.0,0.00041415,15]
[394077717,1763244655473,-151.0,0.00041415,120]
[394077718,1763244655482,-151.0,0.00041415,120]
[394077719,1763244655491,-281.536149,0.00041415,120]
[394077720,1763244655500,-153.885828,0.00041415,120]
[394077721,1763244655509,-153.885828,0.00041415,120]
[394077722,1763244655518,-153.885828,0.00041415,120]
[394077723,1763244655527,-151.0,0.00041415,120]
[394077724,1763244655536,-153.885828,0.00041415,120]
[394077725,1763244655545,-151.0,0.00041415,120]
[394077726,1763244655554,-300.0,0.00041416,2]
[394077727,1763244655563,-150.0,0.00041416,13]
[394077728,1763244655572,-150.0,0.00041417,20]
[394077729,1763244655582,-150.0,0.00041417,28]
[394077730,1763244655591,-154.557523,0.0004142,120]
[394077731,1763244655601,-151.0,0.0004142,120]
[394077732,1763244655610,-151.0,0.0004142,120]
[394077733,1763244655619,-151.0,0.0004142,120]
[394077734,1763244655628,-151.0,0.0004142,120]
[394077735,1763244655637,-151.0,0.0004142,120]
[394077736,1763244655646,-151.0,0.0004142,120]
[394077737,1763244655655,-220.574613,0.0004142,120]
[394077738,1763244655667,-151.0,0.0004142,120]
[394077739,1763244655676,-151.0,0.0004142,120]
[394077740,1763244655685,-151.0,0.0004142,30]
[394077741,1763244655694,-151.0,0.0004142,120]
[394077742,1763244655703,-154.007577,0.0004142,120]
[394077743,1763244655712,-151.0,0.0004142,120]
[394077744,1763244655722,-151.0,0.0004142,120]
[394077745,1763244655731,-151.0,0.0004142,120]
[394077746,1763244655740,-160.395793,0.0004142,120]
[394077747,1763244655750,-151.0,0.0004142,120]
[394077748,1763244655759,-157.105277,0.0004142,120]
[394077749,1763244655770,-151.0,0.0004142,120]
[394077750,1763244655779,-151.0,0.0004142,120]
[394077751,1763244655788,-151.0,0.0004142,120]
[394077752,1763244655797,-151.0,0.0004142,120]
[394077753,1763244655807,-151.0,0.0004142,120]
[394077754,1763244655816,-151.0,0.0004142,120]
[394077755,1763244655825,-151.0,0.0004142,120]
[394077756,1763244655834,-151.0,0.0004142,120]
[394077757,1763244655844,-202.220283,0.0004142,120]
[394077758,1763244655854,-280.275905,0.0004142,120]
[394077759,1763244655863,-151.0,0.0004142,120]
[394077760,1763244655872,-245.0,0.0004142,120]
[394077761,1763244655882,-1258.995056,0.0004142,120]
[394077762,1763244655891,-1258.995056,0.0004142,120]
[394077763,1763244655900,-1258.995056,0.0004142,120]
[394077764,1763244655909,-1258.995056,0.0004142,120]
[394077765,1763244655918,-151.0,0.0004142,120]
[394077766,1763244655928,-151.0,0.0004142,120]
[394077767,1763244655937,-151.0,0.0004142,120]
[394077768,1763244655946,-152.907466,0.0004142,30]
[394077769,1763244655956,-151.0,0.0004142,120]
[394077770,1763244655966,-151.0,0.0004142,120]
[394077771,1763244655974,-151.0,0.0004142,120]
[394077772,1763244655983,-151.0,0.0004142,60]
[394077773,1763244655993,-151.0,0.0004142,120]
[394077774,1763244656002,-151.0,0.0004142,120]
[394077775,1763244656011,-151.0,0.0004142,120]
[394077776,1763244656020,-151.0,0.0004142,120]
[394077777,1763244656030,-156.282468,0.0004142,120]
[394077778,1763244656039,-151.0,0.0004142,120]
[394077779,1763244656048,-151.0,0.0004142,60]
[394077780,1763244656057,-161.347656,0.0004142,120]
[394077781,1763244656066,-235.050797,0.0004142,120]
[394077782,1763244656075,-235.050797,0.0004142,120]
[394077783,1763244656084,-235.050797,0.0004142,120]
[394077784,1763244656093,-235.050797,0.0004142,120]
[394077785,1763244656102,-151.0,0.0004142,120]
[394077786,1763244656111,-151.0,0.0004142,120]
[394077787,1763244656121,-151.0,0.0004142,120]
[394077788,1763244656130,-254.784256,0.0004142,120]
[394077789,1763244656139,-151.0,0.0004142,120]
[394077790,1763244656148,-440.834705,0.0004142,95]
[394077791,1763244656158,-440.834705,0.0004142,95]
[394077792,1763244656167,-440.834705,0.0004142,95]
[394077793,1763244656313,-440.834705,0.0004142,95]
[394077794,1763244656323,-151.0,0.0004142,120]
[394077795,1763244656332,-151.0,0.0004142,120]
[394077796,1763244656342,-151.0,0.0004142,120]
[394077797,1763244656351,-151.0,0.0004142,120]
[394077798,1763244656361,-531.075131,0.0004142,120]
[394077799,1763244656371,-531.075131,0.0004142,120]
[394077800,1763244656380,-531.075131,0.0004142,120]
[394077801,1763244656389,-531.075131,0.0004142,120]
[394077802,1763244656399,-686.89,0.00041425,30]
[394077803,1763244656408,-531.0,0.00041425,90]
[394077804,1763244656417,-500.0,0.00041425,30]
[394077805,1763244656427,-150.0,0.00041426,7]
[394077806,1763244656436,-150.0,0.00041427,15]
[394077807,1763244656446,-150.0,0.00041427,10]
[394077808,1763244656455,-555.32802148,0.00041429,60]
[394077809,1763244656464,-300.0,0.00041434,2]
[394077810,1763244656473,-150.0,0.00041437,27]
[394077811,1763244656483,-511.67591007,0.00041439,60]
[394077812,1763244656493,-666.0,0.00041439,30]
[394077813,1763244656502,-193.063553,0.00041439,120]
[394077814,1763244656512,-151.0,0.00041439,120]
[394077815,1763244656522,-151.0,0.00041439,120]
[394077816,1763244656532,-153.285804,0.00041439,120]
[394077817,1763244656542,-153.285804,0.00041439,120]
[394077818,1763244656551,-153.285804,0.00041439,120]
[394077819,1763244656561,-153.285804,0.00041439,120]
[394077820,1763244656571,-151.0,0.00041439,120]